bitfinex/quotes_BTCUSD_20220303
["timestamp","ask_amount","ask_price","bid_price","bid_amount"]
[1646314607856,0.001,43766.0,43765.0,0.63513254]
[1646314608354,0.001,43766.0,43765.0,1.33273254]
[1646314608753,0.001,43766.0,43765.0,1.34073254]
[1646314609356,0.001,43766.0,43765.0,0.64313254]
[1646314609756,0.001,43766.0,43765.0,0.64312731]
[1646314609960,0.001,43766.0,43765.0,0.63512601]
[1646314610158,0.001,43766.0,43765.0,1.33272601]
[1646314610357,0.001,43766.0,43765.0,0.63512601]
[1646314610557,0.001,43766.0,43765.0,0.63511883]
[1646314610755,0.001,43766.0,43765.0,0.64211883]
[1646314611561,0.001,43766.0,43765.0,0.34211883]
[1646314611760,0.001,43766.0,43765.0,0.24211883]
[1646314611959,0.001,43766.0,43765.0,0.34211883]
[1646314612163,0.001,43766.0,43765.0,0.33511883]
[1646314612360,0.001,43766.0,43765.0,0.132106]
[1646314613607,0.001,43766.0,43765.0,0.38299478]
[1646314614009,0.001,43766.0,43765.0,0.132106]
[1646314614608,0.001,43766.0,43765.0,0.272106]
[1646314614807,0.001,43766.0,43765.0,0.580106]
[1646314615008,0.001,43766.0,43765.0,0.78412678]
[1646314615806,0.001,43766.0,43765.0,0.83774135]
[1646314616006,0.001,43766.0,43765.0,0.82974135]
[1646314616207,0.001,43766.0,43765.0,0.77612678]
[1646314616607,0.001,43766.0,43765.0,0.63612678]
[1646314616809,0.001,43766.0,43765.0,0.64212678]
[1646314617163,0.001,43766.0,43765.0,0.68802678]
[1646314618064,0.001,43766.0,43765.0,0.68202678]
[1646314618264,0.001,43781.0,43765.0,0.68202678]
[1646314618465,0.06425475,43780.0,43765.0,0.68202678]
[1646314618666,0.06121095,43780.0,43765.0,0.68202678]
[1646314618865,0.114301,43773.0,43765.0,0.68702678]
[1646314619968,0.114301,43773.0,43765.0,0.68202678]
[1646314620166,8.27e-05,43771.0,43765.0,0.68202678]
[1646314620566,0.05715,43770.0,43765.0,0.38202678]
[1646314620766,0.05715,43770.0,43765.0,0.38902678]
[1646314621014,0.114301,43773.0,43765.0,0.38902678]
[1646314621015,0.114301,43773.0,43766.0,0.3]
[1646314621216,8.27e-05,43770.0,43767.0,0.347413]
[1646314621414,8.27e-05,43770.0,43767.0,1.045013]
[1646314621619,8.27e-05,43770.0,43767.0,1.090913]
[1646314621823,0.00133077,43776.0,43770.0,0.0001654]
[1646314622018,0.00133077,43776.0,43771.0,0.132081]
[1646314622215,0.001,43776.0,43772.0,0.3]
[1646314622416,0.001,43776.0,43773.0,0.6238512]
[1646314622817,0.001,43776.0,43774.0,0.3]
[1646314623017,0.001,43776.0,43775.0,0.132067]
[1646314623222,0.001,43776.0,43775.0,0.455017]
[1646314623416,0.001,43776.0,43775.0,0.477967]
[1646314623616,0.001,43776.0,43775.0,1.175567]
[1646314624123,0.001,43776.0,43775.0,1.51520328]
[1646314624317,0.001,43781.0,43780.0,0.347303]
[1646314624516,0.001,43781.0,43780.0,0.393203]
[1646314624767,0.001,43781.0,43780.0,1.40807675]
[1646314624967,0.001,43781.0,43780.0,0.71047675]
[1646314626369,0.001,43781.0,43780.0,0.61047675]
[1646314628431,0.001,43781.0,43780.0,0.91047675]
[1646314628623,0.001,43781.0,43780.0,0.61047675]
[1646314630828,0.001,43781.0,43780.0,0.61547675]
[1646314632031,0.001,43781.0,43780.0,0.61047675]
[1646314632260,0.001,43781.0,43780.0,0.71047675]
[1646314632860,0.001,43781.0,43780.0,0.71447675]
[1646314633861,0.001,43781.0,43780.0,0.397203]
[1646314634065,0.19944755,43781.0,43780.0,0.347303]
[1646314634265,0.19944755,43781.0,43772.0,0.1241]
[1646314634464,0.001,43781.0,43771.0,0.124949]
[1646314634667,0.057138,43780.0,43771.0,0.124949]
[1646314634868,0.057138,43780.0,43776.0,0.354462]
[1646314634869,0.16092123,43779.0,43776.0,0.354462]
[1646314635064,0.057138,43780.0,43776.0,0.354462]
[1646314635664,0.05734581,43780.0,43776.0,0.354462]
[1646314636111,0.24465459,43780.0,43776.0,0.354462]
[1646314636713,0.24444678,43780.0,43776.0,0.354462]
[1646314636913,0.46234142,43780.0,43776.0,0.358462]
[1646314637112,0.24464082,43780.0,43776.0,0.358462]
[1646314637613,0.24464082,43780.0,43776.0,0.343462]
[1646314637815,0.24444678,43780.0,43776.0,0.343462]
[1646314638014,0.42520136,43780.0,43776.0,0.343462]
[1646314638315,0.24464133,43780.0,43776.0,0.339462]
[1646314639114,0.24444678,43780.0,43776.0,0.339462]
[1646314639315,0.24464133,43780.0,43776.0,19.339462]
[1646314640369,0.24444678,43780.0,43776.0,19.339462]
[1646314640566,0.24464133,43780.0,43776.0,19.339462]
[1646314640970,0.24464133,43780.0,43777.0,0.3]
[1646314641266,0.24464133,43780.0,43779.0,0.354387]
[1646314641467,0.057138,43780.0,43779.0,0.354387]
[1646314641867,0.057138,43780.0,43777.0,0.354387]
[1646314642473,0.17709568,43778.0,43777.0,0.354387]
[1646314642772,0.17709568,43778.0,43776.0,19.0]
[1646314642969,0.17709568,43778.0,43777.0,0.354387]
[1646314643171,0.17709568,43778.0,43776.0,19.0]
[1646314643402,0.057138,43780.0,43777.0,0.354387]
[1646314644003,0.057138,43780.0,43776.0,19.0]
[1646314644405,0.15596948,43777.0,43776.0,19.0]
[1646314644804,0.15596948,43777.0,43776.0,19.003]
[1646314645013,0.057138,43780.0,43776.0,19.003]
[1646314645408,0.00019572,43779.0,43776.0,19.003]
[1646314645606,0.00019572,43779.0,43777.0,0.354387]
[1646314645807,0.00019572,43779.0,43776.0,19.003]
[1646314646205,0.001,43781.0,43777.0,0.354387]
[1646314646407,0.001,43781.0,43778.0,0.354387]
[1646314646609,0.00019572,43780.0,43777.0,0.3]
[1646314646806,0.00019572,43780.0,43777.0,0.004]
[1646314647005,0.00019572,43780.0,43778.0,0.354387]
[1646314647271,0.00019572,43780.0,43777.0,0.004]
[1646314647471,0.001,43781.0,43777.0,0.004]
[1646314647674,0.001,43781.0,43777.0,0.304]
[1646314647872,0.00119571,43781.0,43777.0,0.004]
[1646314648071,0.05833471,43781.0,43776.0,19.0]
[1646314648674,0.058139,43781.0,43777.0,0.3]
[1646314648871,0.05820873,43781.0,43777.0,0.3]
[1646314649874,0.058139,43781.0,43776.0,19.0]
[1646314650276,0.05820873,43781.0,43776.0,19.0]
[1646314651111,0.058139,43781.0,43776.0,19.0]
[1646314651307,0.05820873,43781.0,43776.0,19.0]
[1646314652109,0.05820873,43781.0,43777.0,0.3]
[1646314652310,0.058139,43781.0,43777.0,0.3]
[1646314652611,0.05835403,43781.0,43777.0,0.3]
[1646314652813,0.05835403,43781.0,43777.0,0.304]
[1646314653210,0.05835403,43781.0,43777.0,0.004]
[1646314653412,0.058139,43781.0,43777.0,0.004]
[1646314653814,0.05835403,43781.0,43777.0,0.004]
[1646314654210,0.05835403,43781.0,43776.0,19.0]
[1646314654413,0.05835403,43781.0,43777.0,0.3]
[1646314654675,0.058139,43781.0,43777.0,0.3]
[1646314654877,0.05835403,43781.0,43777.0,0.3]
[1646314655077,0.07082752,43781.0,43777.0,0.3]
[1646314655276,0.05835403,43781.0,43777.0,0.3]
[1646314655880,0.058139,43781.0,43777.0,0.3]
[1646314656081,0.05834887,43781.0,43777.0,0.3]
[1646314656284,0.05834887,43781.0,43778.0,0.354387]
[1646314656881,0.05834887,43781.0,43778.0,0.357387]
[1646314657082,0.058139,43781.0,43778.0,0.357387]
[1646314658284,0.058139,43781.0,43778.0,0.354387]
[1646314658910,0.058139,43781.0,43778.0,0.358387]
[1646314659311,0.21858122,43780.0,43778.0,0.358387]
[1646314659511,0.21858122,43780.0,43778.0,0.35827714]
[1646314659711,0.21858122,43780.0,43779.0,0.354386]
[1646314661514,0.058139,43781.0,43779.0,0.354386]
[1646314663063,0.058139,43781.0,43779.0,0.357386]
[1646314663662,0.058139,43781.0,43779.0,0.352386]
[1646314664665,0.001,43781.0,43780.0,0.37167036]
[1646314664863,0.001,43781.0,43780.0,0.155778]
[1646314665464,0.11046595,43783.0,43781.0,0.34937]
[1646314665767,0.1106619,43783.0,43781.0,0.66559204]
[1646314666619,0.057134,43782.0,43781.0,0.66559204]
[1646314668824,0.057134,43782.0,43781.0,0.66959204]
[1646314669671,0.057134,43782.0,43781.0,0.66459204]
[1646314669872,0.057134,43783.0,43781.0,0.66459204]
[1646314670074,0.057134,43783.0,43781.0,0.66059204]
[1646314670472,0.057134,43783.0,43782.0,0.3]
[1646314670674,0.057134,43783.0,43782.0,0.409872]
[1646314671078,0.05734084,43784.0,43783.0,0.344353]
[1646314671475,0.057132,43784.0,43783.0,0.344353]
[1646314673831,0.07042539,43784.0,43783.0,0.344353]
[1646314675434,0.07042539,43784.0,43778.0,0.003]
[1646314675435,0.057132,43784.0,43778.0,0.003]
[1646314675736,0.0112815,43783.0,43778.0,0.003]
[1646314675937,0.12797217,43782.0,43778.0,0.003]
[1646314676240,0.21441657,43780.0,43778.0,0.003]
[1646314676837,0.01411613,43781.0,43779.0,0.27380066]
[1646314677036,0.057151,43780.0,43779.0,0.27380066]
[1646314677461,0.057151,43780.0,43779.0,0.62817866]
[1646314678863,0.057151,43780.0,43779.0,0.63017866]
[1646314679261,0.057151,43780.0,43779.0,0.27580066]
[1646314680262,0.057151,43780.0,43779.0,0.27380066]
[1646314681023,0.057151,43780.0,43779.0,0.27580066]
[1646314681721,0.01024309,43783.0,43779.0,0.27580066]
[1646314681722,0.0111688,43783.0,43779.0,0.27580066]
[1646314682325,0.057135,43784.0,43780.0,0.354378]
[1646314682524,0.057135,43784.0,43779.0,0.27380066]
[1646314682525,0.05734354,43784.0,43779.0,0.27380066]
[1646314682925,0.05734354,43784.0,43780.0,0.002]
[1646314683223,0.01013013,43783.0,43780.0,0.002]
[1646314683623,0.057135,43784.0,43780.0,0.002]
[1646314683822,0.07069885,43784.0,43780.0,0.002]
[1646314684026,0.01489162,43783.0,43780.0,0.002]
[1646314684223,0.05734355,43784.0,43780.0,0.002]
[1646314684423,0.01498936,43783.0,43780.0,0.002]
[1646314684863,0.01132656,43782.0,43770.0,0.0001654]
[1646314685063,0.05734355,43784.0,43777.0,0.354378]
[1646314685264,0.06902953,43784.0,43777.0,0.354378]
[1646314685464,0.01086828,43783.0,43780.0,0.28791829]
[1646314685862,0.01086828,43783.0,43781.0,0.354378]
[1646314686063,0.01086828,43783.0,43777.0,0.354378]
[1646314686263,0.01086828,43783.0,43770.0,0.0001654]
[1646314686463,0.01086828,43783.0,43777.0,0.354378]
[1646314686665,0.05734342,43784.0,43774.0,0.05713755]
[1646314686864,0.07214854,43784.0,43774.0,0.05713755]
[1646314687062,0.057135,43784.0,43780.0,0.26739548]
[1646314687265,0.01353206,43783.0,43781.0,0.354378]
[1646314687464,0.01132839,43781.0,43777.0,0.354378]
[1646314687664,0.23910655,43779.0,43776.0,19.003]
[1646314687866,0.057144,43779.0,43776.0,19.003]
[1646314688264,0.057144,43779.0,43776.0,19.0]
[1646314688516,0.057144,43779.0,43777.0,0.24034815]
[1646314689920,0.07104653,43783.0,43778.0,0.354378]
[1646314690319,0.07104653,43783.0,43777.0,0.24034815]
[1646314690519,0.01456454,43782.0,43777.0,0.24034815]
[1646314690918,0.01456454,43782.0,43777.0,0.54334815]
[1646314691119,0.3,43780.0,43778.0,0.354378]
[1646314691518,0.3,43780.0,43779.0,0.3]
[1646314691718,0.3,43780.0,43779.0,0.399899]
[1646314692166,0.3,43780.0,43779.0,0.099899]
[1646314692968,0.3,43780.0,43779.0,0.101899]
[1646314693970,0.3,43780.0,43779.0,0.10180776]
[1646314694170,0.3,43780.0,43779.0,0.09980776]
[1646314694972,0.3,43780.0,43779.0,0.10180776]
[1646314695572,0.3,43780.0,43779.0,0.40180776]
[1646314695774,0.3,43780.0,43779.0,0.46847776]
[1646314696224,0.3,43780.0,43779.0,0.16847776]
[1646314696422,0.3,43780.0,43779.0,0.421055]
[1646314697227,0.3,43780.0,43779.0,0.354385]
[1646314698925,0.3,43780.0,43778.0,0.354385]
[1646314699124,0.3,43780.0,43779.0,0.357385]
[1646314699965,0.3,43780.0,43779.0,0.102791]
[1646314700169,0.3,43780.0,43779.0,0.357385]
[1646314702376,0.3,43780.0,43779.0,0.354385]
[1646314703720,0.3,43780.0,43777.0,0.54034815]
[1646314704120,0.3,43780.0,43778.0,0.354385]
[1646314705621,0.29990635,43780.0,43778.0,0.354385]
[1646314711018,0.29990635,43780.0,43778.0,0.358385]
[1646314711719,0.29990635,43780.0,43779.0,0.354385]
[1646314712719,0.29990635,43780.0,43777.0,0.24034815]
[1646314712720,0.29990635,43780.0,43778.0,0.354385]
[1646314713121,0.29990635,43780.0,43779.0,0.003]
[1646314713320,0.29990635,43780.0,43779.0,0.357385]
[1646314714322,0.29990635,43780.0,43779.0,0.354385]
[1646314714771,0.29990635,43780.0,43777.0,0.24034815]
[1646314714975,0.29990635,43780.0,43778.0,0.354385]
[1646314715177,0.29990635,43780.0,43779.0,0.004]
[1646314715374,0.29990635,43780.0,43779.0,0.358385]
[1646314716376,0.29990635,43780.0,43779.0,0.354385]
[1646314721116,0.29990635,43780.0,43779.0,0.357385]
[1646314722270,0.29990635,43780.0,43779.0,0.654385]
[1646314723073,0.29990635,43780.0,43779.0,0.357385]
[1646314724076,0.29990635,43780.0,43779.0,0.657385]
[1646314724273,0.29990635,43780.0,43779.0,0.654385]
[1646314724676,0.29990635,43780.0,43779.0,0.354385]
[1646314727126,0.29990635,43780.0,43779.0,0.357385]
[1646314727727,0.29990635,43780.0,43779.0,0.657385]
[1646314728228,0.29990635,43780.0,43779.0,0.357385]
[1646314728427,0.29990635,43780.0,43779.0,0.354385]
[1646314729772,0.29990635,43780.0,43779.0,0.654385]
[1646314730176,0.29990635,43780.0,43779.0,0.35427796]
[1646314731471,0.29990635,43780.0,43779.0,0.35727796]
[1646314732675,0.29990635,43780.0,43779.0,0.35427796]
[1646314733528,0.20833691,43779.0,43777.0,0.24034815]
[1646314734128,0.29990635,43780.0,43777.0,0.24034815]
[1646314734328,0.29990635,43780.0,43777.0,0.29749015]
[1646314734528,0.29990635,43780.0,43778.0,0.354385]
[1646314735129,0.29983729,43780.0,43778.0,0.357385]
[1646314735431,0.29983729,43780.0,43779.0,0.3]
[1646314735629,0.29983729,43780.0,43779.0,0.399694]
[1646314739080,0.29983729,43780.0,43779.0,0.403694]
[1646314740285,0.29983729,43780.0,43779.0,0.099694]
[1646314743220,0.29983729,43780.0,43779.0,0.102694]
[1646314743425,0.29983729,43780.0,43779.0,0.357385]
[1646314744322,0.29983729,43780.0,43779.0,0.354385]
[1646314745172,0.29983729,43780.0,43779.0,0.357385]
[1646314746372,0.29983729,43780.0,43778.0,0.354385]
[1646314746671,0.29983729,43780.0,43777.0,0.29749015]
[1646314747071,0.29983729,43780.0,43778.0,0.360385]
[1646314747273,0.29983729,43780.0,43779.0,0.354385]
[1646314748724,0.29983729,43780.0,43778.0,0.354385]
[1646314749224,0.29983729,43780.0,43779.0,0.005]
[1646314749424,0.29983729,43780.0,43779.0,0.104694]
[1646314750227,0.29983729,43780.0,43779.0,0.32748315]
[1646314751231,0.00019472,43784.0,43779.0,0.56898867]
[1646314751440,0.00019472,43784.0,43781.0,0.18704]
[1646314751629,0.00019472,43784.0,43782.0,0.35712651]
[1646314751827,0.00019472,43784.0,43783.0,0.86522881]
[1646314752026,0.01,43789.0,43783.0,0.654349]
[1646314752279,0.00019472,43785.0,43783.0,0.654349]
[1646314753076,0.01,43789.0,43784.0,0.30279402]
[1646314753277,0.00019542,43786.0,43784.0,0.23002202]
[1646314754280,0.01,43789.0,43784.0,0.23002202]
[1646314754578,0.00019542,43787.0,43784.0,0.23002202]
[1646314755178,0.00019542,43787.0,43783.0,0.057123]
[1646314755579,0.01,43789.0,43783.0,0.057123]
[1646314755779,0.00019542,43787.0,43783.0,0.057123]
[1646314756818,0.01,43789.0,43783.0,0.057123]
[1646314757019,0.00019535,43787.0,43783.0,0.057123]
[1646314757218,0.00019535,43787.0,43783.0,0.063123]
[1646314757619,0.00019535,43787.0,43783.0,0.27520265]
[1646314758021,0.01,43789.0,43783.0,0.27520265]
[1646314758221,0.00019535,43787.0,43783.0,0.27520265]
[1646314758421,0.00019535,43787.0,43783.0,0.26920265]
[1646314759024,0.00019535,43787.0,43783.0,0.057123]
[1646314759222,0.01,43789.0,43783.0,0.064123]
[1646314759522,0.00019535,43787.0,43781.0,0.21038821]
[1646314759780,0.00019535,43787.0,43781.0,0.51038821]
[1646314759971,0.00019535,43787.0,43781.0,0.21038821]
[1646314760171,0.00019535,43787.0,43782.0,0.28259266]
[1646314760371,0.01,43789.0,43783.0,0.057123]
[1646314760573,0.00019536,43786.0,43783.0,0.057123]
[1646314760974,0.00019536,43786.0,43783.0,0.11424914]
[1646314761379,0.00019536,43786.0,43784.0,0.3]
[1646314761576,0.01,43789.0,43784.0,0.3]
[1646314761774,0.00019536,43787.0,43784.0,0.3]
[1646314761975,0.00019536,43787.0,43783.0,0.11424914]
[1646314762775,0.01,43789.0,43783.0,0.11424914]
[1646314762977,0.00019535,43787.0,43783.0,0.11424914]
[1646314764041,0.01,43789.0,43783.0,0.11424914]
[1646314764237,6.915e-05,43787.0,43783.0,0.11424914]
[1646314765138,0.01,43789.0,43783.0,0.3756116]
[1646314765337,6.915e-05,43787.0,43783.0,0.3756116]
[1646314765539,6.915e-05,43787.0,43784.0,0.3]
[1646314766338,0.01,43789.0,43784.0,0.3]
[1646314766540,6.915e-05,43788.0,43784.0,0.3]
[1646314767186,6.915e-05,43788.0,43784.0,0.305]
[1646314767588,0.01,43789.0,43784.0,0.305]
[1646314767786,0.00021963,43788.0,43784.0,0.305]
[1646314768487,0.00021963,43788.0,43784.0,0.3]
[1646314768688,0.04504504,43789.0,43784.0,0.3]
[1646314769091,0.00021963,43788.0,43784.0,0.3]
[1646314769290,0.00021963,43788.0,43784.0,0.306]
[1646314769589,0.00021963,43788.0,43784.0,0.3519]
[1646314769990,0.04504504,43789.0,43784.0,0.3519]
[1646314770191,0.00021963,43788.0,43784.0,0.3519]
[1646314770590,0.00021963,43788.0,43784.0,0.3459]
[1646314771235,0.04504504,43789.0,43784.0,0.36491617]
[1646314771438,0.00020979,43788.0,43784.0,0.36491617]
[1646314771836,0.00020979,43788.0,43784.0,0.51491617]
[1646314772034,0.00020979,43788.0,43784.0,1.21251617]
[1646314772436,0.04504504,43789.0,43784.0,1.22946617]
[1646314772636,0.01,43789.0,43784.0,1.21645]
[1646314772835,0.00020155,43788.0,43784.0,1.22875488]
[1646314773037,0.011,43799.0,43784.0,1.22875488]
[1646314773038,0.03366549,43822.0,43787.0,0.14891526]
[1646314773237,0.002,43830.0,43810.0,0.15]
[1646314773238,0.42642961,43829.0,43810.0,0.15]
[1646314773439,0.002,43830.0,43810.0,0.15]
[1646314773440,0.002,43830.0,43817.0,0.09354932]
[1646314773738,0.002,43830.0,43819.0,0.6976]
[1646314773937,0.002,43830.0,43821.0,0.6976]
[1646314774141,0.002,43830.0,43819.0,0.057069]
[1646314774336,0.002,43830.0,43820.0,0.0459]
[1646314774538,0.20314932,43826.0,43820.0,0.0459]
[1646314775195,0.20314932,43826.0,43820.0,0.0509]
[1646314775394,0.20314932,43826.0,43821.0,0.3]
[1646314775395,0.00021237,43825.0,43821.0,0.3]
[1646314775593,0.00021237,43825.0,43822.0,0.0459]
[1646314776193,0.002,43830.0,43822.0,0.0459]
[1646314776392,0.002,43830.0,43811.0,0.3]
[1646314776393,0.24848101,43814.0,43811.0,0.3]
[1646314776591,0.24848101,43814.0,43805.0,0.5617]
[1646314776592,0.24848101,43814.0,43805.0,0.6076]
[1646314776799,0.24848101,43814.0,43805.0,0.0459]
[1646314776992,0.20237835,43818.0,43806.0,0.057098]
[1646314777193,0.05021236,43826.0,43807.0,0.0459]
[1646314777194,0.16531203,43822.0,43807.0,0.0459]
[1646314777493,0.0002124,43814.0,43807.0,0.0459]
[1646314778098,0.0002124,43814.0,43807.0,0.3459]
[1646314778296,0.0002124,43814.0,43807.0,0.0459]
[1646314778542,0.05,43826.0,43807.0,0.3459]
[1646314778939,0.00021178,43813.0,43811.0,0.26895656]
[1646314779142,0.00021178,43813.0,43812.0,0.0459]
[1646314779344,0.00021178,43813.0,43812.0,0.3459]
[1646314779540,0.00021178,43813.0,43812.0,0.0459]
[1646314779742,0.05,43826.0,43812.0,0.4459]
[1646314779941,0.002,43830.0,43815.0,0.171223]
[1646314780142,0.002,43830.0,43816.0,0.5951318]
[1646314780143,0.0008274,43821.0,43816.0,0.5951318]
[1646314780342,0.0008274,43821.0,43817.0,0.1]
[1646314780540,0.0008274,43821.0,43818.0,0.0459]
[1646314780940,0.21907219,43828.0,43818.0,0.0459]
[1646314781142,0.002,43830.0,43818.0,0.0459]
[1646314781143,0.002,43830.0,43826.0,0.22036201]
[1646314781349,0.00082731,43828.0,43827.0,0.3]
[1646314781543,0.00082731,43828.0,43826.0,0.22036201]
[1646314781848,0.00082731,43828.0,43827.0,0.3]
[1646314782043,0.004,43833.0,43828.0,0.9]
[1646314782289,0.004,43833.0,43829.0,0.1]
[1646314782490,0.00020721,43830.0,43829.0,0.0459]
[1646314782690,0.00020721,43830.0,43829.0,0.3459]
[1646314783089,0.00020721,43830.0,43829.0,0.4459]
[1646314783289,0.004,43833.0,43829.0,0.4459]
[1646314783490,0.004,43833.0,43830.0,0.3]
[1646314783693,0.00193818,43834.0,43833.0,1.3476]
[1646314783891,0.00193818,43834.0,43833.0,1.3935]
[1646314784091,0.00193818,43834.0,43833.0,1.4935]
[1646314784293,0.05,43847.0,43834.0,1.4476]
[1646314784496,0.01029646,43849.0,43838.0,0.6976]
[1646314784695,0.01019767,43873.0,43843.0,0.95]
[1646314785000,0.46681844,43880.0,43843.0,0.95]
[1646314785001,0.03452498,43891.0,43859.0,0.0317866]
[1646314785194,0.03452498,43891.0,43875.0,0.10972344]
[1646314785195,0.02385798,43890.0,43875.0,0.10972344]
[1646314785392,0.005,43892.0,43878.0,0.056988]
[1646314785594,0.005,43892.0,43890.0,0.24276643]
[1646314785798,0.005,43892.0,43891.0,0.34792759]
[1646314786061,0.051995,43900.0,43891.0,0.34792759]
[1646314786062,0.04027656,43897.0,43892.0,0.24276643]
[1646314786263,0.04027656,43894.0,43890.0,0.0459]
[1646314786462,0.04027656,43894.0,43880.0,0.6494]
[1646314786463,0.03367883,43918.0,43893.0,0.00214028]
[1646314786663,0.01041055,43915.0,43894.0,0.06874]
[1646314786863,0.056984,43921.0,43895.0,0.995]
[1646314787070,0.15,43920.0,43907.0,0.04546]
[1646314787362,1.0,43922.0,43893.0,0.06136]
[1646314787363,0.18730599,43906.0,43893.0,0.06136]
[1646314787562,0.18730599,43906.0,43889.0,0.007]
[1646314787563,0.18801665,43894.0,43889.0,0.007]
[1646314787764,0.18801665,43894.0,43882.0,0.5781]
[1646314787963,0.18801665,43894.0,43872.0,0.669871]
[1646314787964,0.18801665,43894.0,43889.0,0.056983]
[1646314788162,0.15,43899.0,43879.0,0.113958]
[1646314788163,0.15,43899.0,43884.0,0.159869]
[1646314788462,0.15,43899.0,43879.0,0.00943571]
[1646314788463,0.15,43896.0,43879.0,0.0459]
[1646314788861,0.01138,43900.0,43879.0,0.0459]
[1646314788862,0.16065,43895.0,43879.0,0.0459]
[1646314789062,0.16065,43895.0,43880.0,0.3]
[1646314789264,0.19478521,43886.0,43879.0,0.0519]
[1646314789470,0.0355953,43891.0,43886.0,0.31040051]
[1646314789697,0.354372,43890.0,43887.0,0.13892981]
[1646314789893,0.365742,43890.0,43887.0,0.13892981]
[1646314790092,0.0305953,43888.0,43887.0,0.13892981]
[1646314790293,0.3849673,43888.0,43887.0,0.13892981]
[1646314790493,0.73171367,43888.0,43887.0,0.13892981]
[1646314790894,0.80706231,43888.0,43887.0,0.13892981]
[1646314791295,0.80706231,43888.0,43886.0,0.31040051]
[1646314791296,1.0,43887.0,43886.0,0.31040051]
[1646314791594,1.29986172,43887.0,43886.0,0.31040051]
[1646314791792,1.29986172,43887.0,43871.0,0.25044691]
[1646314791793,1.0,43886.0,43871.0,0.25044691]
[1646314791993,0.0305953,43885.0,43871.0,0.01]
[1646314792197,0.0255953,43885.0,43871.0,0.01]
[1646314792395,0.20241759,43879.0,43871.0,0.01]
[1646314792699,0.354372,43875.0,43871.0,0.01]
[1646314792895,0.3799673,43872.0,43871.0,0.01]
[1646314793096,0.71952,43872.0,43871.0,0.01]
[1646314793441,1.0,43871.0,43858.0,0.20207058]
[1646314793631,1.0,43871.0,43851.0,0.3]
[1646314793632,0.0255953,43867.0,43851.0,0.3]
[1646314793931,0.0255953,43867.0,43846.0,0.07084602]
[1646314793932,0.17556526,43865.0,43847.0,0.3]
[1646314794232,0.0459,43864.0,43847.0,0.3]
[1646314794530,0.48038838,43862.0,43847.0,0.3]
[1646314794734,0.48038838,43862.0,43844.0,0.8806]
[1646314794735,0.14632108,43862.0,43844.0,0.8806]
[1646314794929,0.0459,43862.0,43844.0,0.5806]
[1646314795128,0.057703,43862.0,43841.0,0.01]
[1646314795329,0.19432811,43851.0,43841.0,0.01]
[1646314795530,0.20073953,43847.0,43841.0,0.01]
[1646314795829,0.19432811,43851.0,43841.0,0.01]
[1646314796629,0.15684772,43845.0,43841.0,0.01]
[1646314796831,0.19432811,43851.0,43841.0,0.01]
[1646314797030,0.00020687,43848.0,43841.0,0.01]
[1646314797294,0.00020687,43848.0,43841.0,0.014]
[1646314797796,0.00020687,43848.0,43832.0,0.1617897]
[1646314797797,0.0255953,43843.0,43819.0,0.1244047]
[1646314797998,0.354372,43837.0,43813.0,0.1244047]
[1646314798196,0.21947659,43833.0,43815.0,0.1244047]
[1646314798394,0.18025186,43832.0,43819.0,0.06310901]
[1646314798595,0.22615186,43832.0,43815.0,0.1244047]
[1646314798797,0.22615186,43832.0,43813.0,0.6017]
[1646314798993,1.42615186,43832.0,43814.0,0.1244047]
[1646314799196,1.0,43831.0,43812.0,0.2654096]
[1646314799397,1.0,43831.0,43811.0,0.01]
[1646314799398,0.2639778,43815.0,43811.0,0.01]
[1646314799695,0.2639778,43815.0,43793.0,0.15952841]
[1646314799696,0.0459,43816.0,43799.0,0.53688602]
[1646314799897,0.36516543,43830.0,43817.0,0.58640672]
[1646314800097,0.16968613,43824.0,43817.0,0.58640672]
[1646314800296,0.0459,43823.0,43817.0,0.58640672]
[1646314800497,0.17416288,43819.0,43817.0,0.58640672]
[1646314800699,0.0459,43818.0,43817.0,0.58640672]
[1646314800951,0.41315315,43818.0,43817.0,0.58640672]
[1646314801147,0.400272,43818.0,43817.0,0.58640672]
[1646314801345,0.401272,43818.0,43817.0,0.58640672]
[1646314801547,1.0,43817.0,43799.0,0.53688602]
[1646314801751,0.60027918,43816.0,43815.0,0.00022096]
[1646314801948,0.60027918,43816.0,43799.0,0.53688602]
[1646314801949,1.0,43815.0,43799.0,0.53688602]
[1646314802149,0.06813339,43814.0,43799.0,0.53688602]
[1646314802452,0.2198271,43814.0,43799.0,0.53688602]
[1646314802648,0.19862955,43808.0,43799.0,0.53688602]
[1646314802952,0.0459,43807.0,43799.0,0.53688602]
[1646314803151,0.0459,43807.0,43797.0,0.24886685]
[1646314803353,0.3,43806.0,43784.0,0.4922]
[1646314803553,0.3,43806.0,43783.0,0.015]
[1646314803554,0.3459,43806.0,43783.0,0.015]
[1646314803754,0.11400594,43805.0,43783.0,0.015]
[1646314803953,0.11400594,43805.0,43781.0,0.01]
[1646314803954,0.1750543,43797.0,43782.0,0.5449]
[1646314804153,0.0459,43798.0,43782.0,0.5449]
[1646314805003,0.0459,43798.0,43785.0,0.15]
[1646314805197,0.0459,43798.0,43782.0,0.5449]
[1646314805395,0.2526345,43798.0,43791.0,0.20463115]
[1646314805594,0.2526345,43798.0,43782.0,0.5449]
[1646314805996,0.2526345,43798.0,43783.0,0.3]
[1646314806192,0.2526345,43798.0,43782.0,0.5449]
[1646314806394,0.3,43797.0,43782.0,0.5449]
[1646314806594,0.2526345,43798.0,43792.0,0.00021162]
[1646314806996,0.17142442,43797.0,43792.0,0.00021162]
[1646314807598,0.17142442,43797.0,43782.0,0.5449]
[1646314807795,0.2526345,43798.0,43782.0,0.5449]
[1646314807796,0.0459,43798.0,43792.0,0.00020066]
[1646314807995,0.3,43797.0,43792.0,0.00020066]